bitfinex-derivatives/quotes_SOLF0:USTF0_20250428
["timestamp","ask_amount","ask_price","bid_price","bid_amount"]
[1745835004965,567.55062809,151.55,151.48,29.55924368]
[1745835005269,92.43062809,151.55,151.48,29.55924368]
[1745835005470,92.43062809,151.55,151.51,29.55924368]
[1745835006568,104.48752809,151.61,151.51,29.55924368]
[1745835006768,100.64722809,151.61,151.54,29.55924368]
[1745835006969,107.24102809,151.61,151.54,29.55924368]
[1745835007169,96.48612809,151.61,151.54,29.55924368]
[1745835007466,103.07992809,151.61,151.54,29.55924368]
[1745835007767,10.6493,151.61,151.54,29.55924368]
[1745835007969,7.6456,151.65,151.57,29.55924368]
[1745835008271,6.5926,151.64,151.57,29.55924368]
[1745835008468,7.6456,151.65,151.55,29.55924368]
[1745835008670,3.8367,151.65,151.58,29.55924368]
[1745835008867,92.43062809,151.65,151.58,29.55924368]
[1745835009170,99.02262809,151.65,151.58,29.55924368]
[1745835009672,92.43062809,151.65,151.58,29.55924368]
[1745835010171,92.43062809,151.65,151.61,29.55924368]
[1745835010776,3.7933,151.67,151.61,29.55924368]
[1745835011472,29.55924368,151.66,151.53,4.161]
[1745835011673,3.7933,151.67,151.57,29.55924368]
[1745835011967,6.5918,151.66,151.57,29.55924368]
[1745835012172,3.7933,151.67,151.6,29.55924368]
[1745835012972,3.7933,151.67,151.54,29.55924368]
[1745835013977,6.5917,151.66,151.58,29.55924368]
[1745835015169,3.7933,151.67,151.61,29.55924368]
[1745835015373,7.9336,151.69,151.61,29.55924368]
[1745835015875,14.5242,151.69,151.61,29.55924368]
[1745835016175,7.9336,151.69,151.61,29.55924368]
[1745835016375,6.5907,151.68,151.61,29.55924368]
[1745835017178,3.8895,151.71,151.61,29.55924368]
[1745835017574,6.5899,151.7,151.61,29.55924368]
[1745835018073,3.8895,151.71,151.61,29.55924368]
[1745835018268,10.479,151.71,151.61,29.55924368]
[1745835018675,7.9813,151.73,151.64,29.55924368]
[1745835019179,14.5702,151.73,151.64,29.55924368]
[1745835019379,6.5889,151.73,151.64,29.55924368]
[1745835020474,96.28522809,151.75,151.64,29.55924368]
[1745835020774,92.43062809,151.75,151.65,7.7136]
[1745835020978,96.34482809,151.75,151.65,7.7136]
[1745835021275,6.5888,151.73,151.65,7.7136]
[1745835021476,3.9142,151.75,151.65,7.7136]
[1745835021778,6.5888,151.73,151.65,7.7136]
[1745835021978,3.9142,151.75,151.65,7.7136]
[1745835022280,6.5883,151.74,151.65,7.7136]
[1745835022482,3.9142,151.75,151.65,7.7136]
[1745835022776,6.5881,151.74,151.65,7.7136]
[1745835023380,3.9142,151.75,151.65,7.7136]
[1745835023581,3.9142,151.75,151.65,37.27284368]
[1745835023877,3.9142,151.75,151.65,7.7136]
[1745835024573,10.5019,151.75,151.65,7.7136]
[1745835024778,3.9142,151.75,151.65,7.7136]
[1745835025081,6.5882,151.74,151.65,7.7136]
[1745835025382,3.9142,151.75,151.62,3.8266]
[1745835025575,6.5886,151.73,151.62,3.8266]
[1745835025778,6.5886,151.73,151.65,29.55924368]
[1745835026182,6.5882,151.74,151.65,29.55924368]
[1745835026383,3.9142,151.75,151.65,29.55924368]
[1745835026681,4.0077,151.77,151.68,29.55924368]
[1745835027482,6.5874,151.76,151.68,29.55924368]
[1745835028185,4.0077,151.77,151.65,29.55924368]
[1745835028484,6.5876,151.75,151.65,29.55924368]
[1745835029782,29.55924368,151.73,151.62,3.8266]
[1745835030178,6.59,151.7,151.62,3.8266]
[1745835030477,33.68274368,151.73,151.62,3.8266]
[1745835030680,6.5901,151.7,151.62,3.8266]
[1745835030882,29.55924368,151.67,151.57,7.7731]
[1745835031183,6.5917,151.66,151.55,29.55924368]
[1745835031385,4.0235,151.66,151.54,29.55924368]
[1745835031680,29.55924368,151.64,151.52,29.55924368]
[1745835031881,29.55924368,151.58,151.46,29.55924368]
[1745835032081,3.8082,151.57,151.46,29.55924368]
[1745835032384,3.8082,151.57,151.45,11.7336]
[1745835032385,6.5955,151.57,151.49,29.55924368]
[1745835032584,29.55924368,151.6,151.49,29.55924368]
[1745835032785,29.55924368,151.57,151.46,29.55924368]
[1745835033088,29.55924368,151.62,151.49,29.55924368]
[1745835033281,11.8425,151.64,151.55,29.55924368]
[1745835034388,92.43062809,151.65,151.61,29.55924368]
[1745835034579,92.43062809,151.65,151.64,29.55924368]
[1745835035387,6.5905,151.69,151.64,29.55924368]
[1745835035985,474.6,151.72,151.64,29.55924368]
[1745835036181,474.6,151.72,151.6,29.55924368]
[1745835036182,3.8495,151.73,151.68,29.55924368]
[1745835036481,96.40122809,151.77,151.68,29.55924368]
[1745835036685,3.8563,151.76,151.68,29.55924368]
[1745835037084,3.8563,151.76,151.61,3.8499]
[1745835037085,3.8563,151.76,151.65,29.55924368]
[1745835037291,29.55924368,151.75,151.62,29.55924368]
[1745835038192,6.5898,151.71,151.62,29.55924368]
[1745835038388,29.55924368,151.75,151.62,29.55924368]
[1745835038589,92.43062809,151.74,151.62,29.55924368]
[1745835039490,29.55924368,151.72,151.61,29.55924368]
[1745835039691,6.5908,151.68,151.59,29.55924368]
[1745835039891,3.9011,151.71,151.59,29.55924368]
[1745835040793,29.55924368,151.69,151.55,33.33714368]
[1745835040989,6.593,151.63,151.55,33.33714368]
[1745835041188,3.9644,151.68,151.58,29.55924368]
[1745835042193,6.5914,151.67,151.58,29.55924368]
[1745835042389,92.43062809,151.67,151.58,29.55924368]
[1745835042594,92.43062809,151.67,151.61,29.55924368]
[1745835043095,92.43062809,151.67,151.64,29.55924368]
[1745835043394,154.97981422,151.72,151.66,29.55924368]
[1745835043594,154.97981422,151.72,151.69,29.55924368]
[1745835044506,154.97981422,151.72,151.66,29.55924368]
[1745835046693,494.38,151.73,151.47,23.2286448]
[1745835046895,29.55924368,151.69,151.58,29.55924368]
[1745835047198,29.55924368,151.66,151.55,29.55924368]
[1745835047398,13.1741,151.77,151.64,29.55924368]
[1745835047600,7.8731,151.74,151.64,29.55924368]
[1745835047794,37.43234368,151.74,151.61,29.55924368]
[1745835048093,7.8731,151.74,151.61,29.55924368]
[1745835048398,6.5891,151.72,151.62,2.68217109]
[1745835048595,7.8731,151.74,151.61,29.55924368]
[1745835048789,7.8731,151.74,151.62,2.68245369]
[1745835048991,7.8731,151.74,151.64,29.55924368]
[1745835049190,6.5892,151.72,151.61,29.55924368]
[1745835049403,6.5892,151.72,151.62,2.68577305]
[1745835049699,7.8731,151.74,151.61,29.55924368]
[1745835049897,29.55924368,151.72,151.62,2.68613336]
[1745835050098,6.5901,151.7,151.59,29.55924368]
[1745835050300,29.55924368,151.72,151.6,2.68669172]
[1745835050593,29.55924368,151.72,151.61,2.68669172]
[1745835050797,29.55924368,151.72,151.59,29.55924368]
[1745835050999,29.55924368,151.72,151.6,2.68932638]
[1745835051200,6.5899,151.7,151.61,2.68932638]
[1745835051400,6.5899,151.7,151.59,29.55924368]
[1745835051600,29.55924368,151.72,151.6,2.6901837]
[1745835051898,29.55924368,151.72,151.61,2.6901837]
[1745835052197,7.8731,151.74,151.65,29.55924368]
[1745835052699,14.4613,151.74,151.65,29.55924368]
[1745835052900,7.8731,151.74,151.65,29.55924368]
[1745835053101,7.8731,151.74,151.68,29.55924368]
[1745835053301,7.8731,151.74,151.65,29.55924368]
[1745835053503,7.8731,151.74,151.66,2.68884585]
[1745835053704,7.8731,151.74,151.65,29.55924368]
[1745835053904,7.8731,151.74,151.66,2.68909618]
[1745835054204,3.7628,151.74,151.68,29.55924368]
[1745835055304,3.7628,151.74,151.65,29.55924368]
[1745835055505,3.7628,151.74,151.66,2.68877728]
[1745835055804,3.7628,151.74,151.65,29.55924368]
[1745835056005,3.7628,151.74,151.66,2.68878171]
[1745835056206,10.3511,151.74,151.65,29.55924368]
[1745835056403,3.7628,151.74,151.66,2.68865789]
[1745835056604,3.7628,151.74,151.65,29.55924368]
[1745835056903,3.7628,151.74,151.66,2.68867782]
[1745835057103,3.7628,151.74,151.65,29.55924368]
[1745835057305,10.3509,151.74,151.66,2.68860591]
[1745835057495,3.7628,151.74,151.65,29.55924368]
[1745835057696,3.7628,151.74,151.66,2.68869894]
[1745835057900,3.7628,151.74,151.65,29.55924368]
[1745835058104,3.7628,151.74,151.66,2.68869749]
[1745835058304,3.8958,151.76,151.65,29.55924368]
[1745835058506,3.8958,151.76,151.66,2.68897523]
[1745835058705,3.8958,151.76,151.65,29.55924368]
[1745835058900,3.8958,151.76,151.66,2.68899165]
[1745835059101,3.8958,151.76,151.65,29.55924368]
[1745835059297,29.55924368,151.72,151.48,474.48]
[1745835059605,6.5926,151.64,151.53,29.55924368]
[1745835060101,49.39924368,151.75,151.53,29.55924368]
[1745835060102,150.0,151.82,151.62,29.55924368]
[1745835060299,7.744,151.78,151.69,29.55924368]
[1745835060504,7.744,151.78,151.66,29.55924368]
[1745835060705,29.55924368,151.76,151.63,30.55194368]
[1745835061206,29.55924368,151.73,151.63,0.9927]
[1745835061403,29.55924368,151.7,151.6,29.55924368]
[1745835061602,6.5918,151.66,151.57,29.55924368]
[1745835061902,504.01924368,151.77,151.63,29.55924368]
[1745835062206,8.0658,151.74,151.69,29.55924368]
[1745835062404,8.0658,151.74,151.66,29.55924368]
[1745835062599,8.0658,151.74,151.63,29.55924368]
[1745835063207,6.5893,151.72,151.63,29.55924368]
[1745835063409,8.0658,151.74,151.63,29.55924368]
[1745835063911,6.5897,151.71,151.63,29.55924368]
[1745835064905,8.0658,151.74,151.63,29.55924368]
[1745835065510,8.0658,151.74,151.55,0.9927]
[1745835065511,8.0658,151.74,151.66,29.55924368]
[1745835066112,8.0658,151.74,151.63,29.55924368]
[1745835066513,6.5895,151.71,151.63,29.55924368]
[1745835066913,6.5898,151.7,151.63,29.55924368]
[1745835067106,8.0658,151.74,151.63,29.55924368]
[1745835068610,6.5898,151.7,151.63,29.55924368]
[1745835068815,29.55924368,151.72,151.6,29.55924368]
[1745835069115,8.0658,151.74,151.6,29.55924368]
[1745835069411,6.5905,151.69,151.6,29.55924368]
[1745835069608,29.55924368,151.72,151.6,29.55924368]
[1745835069905,6.5905,151.69,151.6,29.55924368]
[1745835070115,29.55924368,151.72,151.6,29.55924368]
[1745835070413,6.5914,151.67,151.6,29.55924368]
[1745835070613,29.55924368,151.72,151.6,29.55924368]
[1745835071112,6.5905,151.69,151.6,29.55924368]
[1745835071616,6.5907,151.68,151.6,29.55924368]
[1745835073516,29.55924368,151.7,151.56,57.92]
[1745835073715,57.92,151.71,151.6,29.55924368]
[1745835074617,6.5912,151.67,151.6,29.55924368]
[1745835075016,57.92,151.71,151.6,29.55924368]
[1745835075219,3.9309,151.7,151.63,29.55924368]
[1745835075517,3.9309,151.7,151.6,29.55924368]
[1745835076719,6.5911,151.67,151.6,29.55924368]
[1745835077519,6.5909,151.68,151.6,29.55924368]
[1745835078825,3.9309,151.7,151.63,29.55924368]
[1745835079021,3.9309,151.7,151.6,29.55924368]
[1745835079923,6.5915,151.67,151.6,29.55924368]
[1745835080117,3.9309,151.7,151.6,29.55924368]
[1745835080623,6.5911,151.67,151.6,29.55924368]
[1745835081425,3.9309,151.7,151.6,29.55924368]
[1745835082021,6.5918,151.66,151.6,29.55924368]
[1745835082420,6.5912,151.67,151.6,29.55924368]
[1745835082722,3.9309,151.7,151.6,29.55924368]
[1745835082924,6.5912,151.67,151.6,29.55924368]
[1745835083326,3.9309,151.7,151.6,29.55924368]
[1745835083719,3.9309,151.7,151.63,29.55924368]
[1745835083924,57.92,151.71,151.66,29.55924368]
[1745835084226,8.0658,151.74,151.66,29.55924368]
[1745835084530,6.5892,151.72,151.66,29.55924368]
[1745835084827,8.0658,151.74,151.66,29.55924368]
[1745835085825,8.0658,151.74,151.69,29.55924368]
[1745835086131,529.34,151.77,151.69,29.55924368]
[1745835086322,6.5879,151.75,151.69,29.55924368]
[1745835086634,529.34,151.77,151.69,29.55924368]
[1745835087027,6.5879,151.75,151.69,29.55924368]
[1745835087331,242.97076333,151.83,151.69,29.55924368]
[1745835087332,4.1179,151.84,151.72,29.55924368]
[1745835087530,4.1179,151.84,151.76,29.55924368]
[1745835087929,29.55924368,151.81,151.7,54.88]
[1745835088132,6.5866,151.78,151.69,29.55924368]
[1745835088430,29.55924368,151.75,151.61,29.55924368]
[1745835088624,6.5894,151.71,151.62,29.55924368]
[1745835088822,54.88,151.74,151.59,29.55924368]
[1745835089031,4.1207,151.7,151.59,29.55924368]
[1745835089233,6.5905,151.69,151.59,29.55924368]
[1745835089433,3.8769,151.69,151.62,29.55924368]
[1745835090027,29.55924368,151.75,151.62,29.55924368]
[1745835090234,29.55924368,151.85,151.72,29.55924368]
[1745835090434,6.5856,151.8,151.72,29.55924368]
[1745835090632,7.8886,151.81,151.75,29.55924368]
[1745835090831,7.8886,151.81,151.69,29.55924368]
[1745835091031,6.5865,151.78,151.69,29.55924368]
[1745835091331,54.88,151.8,151.69,29.55924368]
[1745835091534,6.5871,151.77,151.69,29.55924368]
[1745835093038,6.5874,151.76,151.69,29.55924368]
[1745835093235,29.55924368,151.76,151.63,29.55924368]
[1745835093442,3.7804,151.75,151.63,29.55924368]
[1745835093639,6.5892,151.72,151.63,29.55924368]
[1745835093841,54.88,151.72,151.66,29.55924368]
[1745835095140,54.88,151.72,151.63,29.55924368]
[1745835095341,4.0139,151.71,151.63,29.55924368]
[1745835095739,4.0139,151.71,151.66,29.55924368]
[1745835097044,4.0139,151.71,151.58,474.54]
[1745835097240,4.0139,151.71,151.55,0.9998]
[1745835097437,29.55924368,151.7,151.55,0.9998]
[1745835097642,29.55924368,151.7,151.56,29.55924368]
[1745835097842,4.0683,151.69,151.59,29.55924368]
[1745835098043,6.5919,151.66,151.59,29.55924368]
[1745835098244,4.0683,151.69,151.59,29.55924368]
[1745835098947,6.5909,151.68,151.59,29.55924368]
[1745835099347,4.0683,151.69,151.62,29.55924368]
[1745835099745,4.0683,151.69,151.59,29.55924368]
[1745835100247,6.5918,151.66,151.59,29.55924368]
[1745835100546,4.0683,151.69,151.59,29.55924368]
[1745835101347,6.5914,151.67,151.59,29.55924368]
[1745835101545,4.0683,151.69,151.59,29.55924368]
[1745835102546,6.5908,151.68,151.59,29.55924368]
[1745835102746,4.0683,151.69,151.59,29.55924368]
[1745835102947,29.55924368,151.68,151.55,29.55924368]
[1745835103143,4.0683,151.69,151.58,29.55924368]
[1745835103344,4.1079,151.67,151.58,29.55924368]
[1745835103544,6.5918,151.66,151.58,29.55924368]
[1745835104243,4.1079,151.67,151.58,29.55924368]
[1745835104544,29.55924368,151.62,151.44,29.55924368]
[1745835104746,4.1079,151.67,151.57,29.55924368]
[1745835104946,3.9785,151.66,151.57,29.55924368]
[1745835105147,3.9785,151.66,151.54,29.55924368]
[1745835105346,6.5941,151.61,151.54,29.55924368]
[1745835105750,3.9785,151.66,151.54,29.55924368]
[1745835106146,29.55924368,151.64,151.51,81.67924368]
[1745835106346,6.5942,151.6,151.51,81.67924368]
[1745835108653,6.5947,151.59,151.51,81.67924368]
[1745835108854,52.12,151.62,151.51,81.67924368]
[1745835109253,6.5947,151.59,151.51,81.67924368]
[1745835110050,52.12,151.62,151.51,29.55924368]
[1745835110250,52.12,151.62,151.45,0.9901]
[1745835110251,29.55924368,151.55,151.45,0.9901]
[1745835110453,80.33924368,151.55,151.45,0.9901]
[1745835110954,80.33924368,151.55,151.43,29.55924368]
[1745835112155,6.5974,151.53,151.43,29.55924368]
[1745835112453,80.33924368,151.55,151.42,0.9993]
[1745835112651,50.78,151.55,151.46,29.55924368]
[1745835112850,57.3766,151.55,151.46,29.55924368]
[1745835113555,6.5968,151.54,151.46,29.55924368]
[1745835113756,50.78,151.55,151.46,29.55924368]
[1745835114256,29.55924368,151.58,151.46,29.55924368]
[1745835114456,50.8,151.57,151.46,29.55924368]
[1745835114656,6.5966,151.55,151.46,29.55924368]
[1745835114856,29.55924368,151.58,151.46,29.55924368]
[1745835115056,54.7655,151.57,151.46,29.55924368]
[1745835115559,6.597,151.54,151.46,29.55924368]
[1745835116659,54.7655,151.57,151.46,29.55924368]
[1745835117057,54.7655,151.57,151.43,29.55924368]
[1745835117257,6.5976,151.53,151.43,29.55924368]
[1745835117459,54.7655,151.57,151.46,29.55924368]
[1745835118355,54.7655,151.57,151.33,29.55924368]
[1745835118356,29.55924368,151.47,151.33,29.55924368]
[1745835118555,29.55924368,151.44,151.3,29.55924368]
[1745835118755,49.4,151.43,151.3,29.55924368]
[1745835119457,6.6031,151.4,151.3,29.55924368]
[1745835119756,49.4,151.43,151.3,29.55924368]
[1745835119957,29.55924368,151.41,151.29,1.0052]
[1745835120454,6.6036,151.39,151.3,29.55924368]
[1745835120659,49.4,151.43,151.3,29.55924368]
[1745835120858,6.604,151.38,151.3,29.55924368]
[1745835121059,49.4,151.43,151.3,29.55924368]
[1745835121558,49.4,151.43,151.33,29.55924368]
[1745835121957,56.0016,151.43,151.33,29.55924368]
[1745835122661,486.8631,151.46,151.36,29.55924368]
[1745835122956,486.8631,151.46,151.39,29.55924368]
[1745835123860,6.6007,151.45,151.39,29.55924368]
[1745835124360,493.4634,151.46,151.39,29.55924368]
[1745835124660,486.8631,151.46,151.36,29.55924368]
[1745835125160,6.6008,151.45,151.36,29.55924368]
[1745835125361,486.8631,151.46,151.36,29.55924368]
[1745835125557,486.8631,151.46,151.33,29.55924368]
[1745835125759,486.8631,151.46,151.36,29.55924368]
[1745835126459,6.6009,151.45,151.36,29.55924368]
[1745835126655,486.8631,151.46,151.36,29.55924368]
[1745835126963,6.6012,151.44,151.36,29.55924368]
[1745835127161,486.8631,151.46,151.33,29.55924368]
[1745835127461,6.6023,151.42,151.33,29.55924368]
[1745835127960,6.6017,151.43,151.33,29.55924368]
[1745835128362,486.8631,151.46,151.33,29.55924368]
[1745835128562,6.6011,151.44,151.33,29.55924368]
[1745835128958,486.8631,151.46,151.33,29.55924368]
[1745835129164,486.8631,151.46,151.36,29.55924368]
[1745835129663,4.0175,151.46,151.39,29.55924368]
[1745835130064,6.5991,151.49,151.39,29.55924368]
[1745835130363,77.59924368,151.5,151.39,29.55924368]
[1745835130658,6.5998,151.47,151.39,29.55924368]
[1745835131664,6.6004,151.46,151.39,29.55924368]
[1745835132067,29.55924368,151.47,151.36,77.59924368]
[1745835132366,10.7324,151.45,151.36,77.59924368]
[1745835133260,4.1315,151.45,151.36,77.59924368]
[1745835134464,76.07924368,151.44,151.29,2.15466325]
[1745835134662,29.55924368,151.41,151.29,1.0052]
[1745835134965,6.6041,151.38,151.29,1.0052]
[1745835135164,29.55924368,151.38,151.28,29.55924368]
[1745835135367,6.6044,151.37,151.25,77.08774368]
[1745835135669,11.4588,151.37,151.25,77.08774368]
[1745835136069,6.6047,151.36,151.25,77.08774368]
[1745835137362,18.0632,151.37,151.25,77.08774368]
[1745835137967,11.4588,151.37,151.25,77.08774368]
[1745835138769,6.6047,151.36,151.25,77.08774368]
[1745835140170,6.6051,151.35,151.25,77.08774368]
[1745835140373,29.55924368,151.35,151.25,46.52]
[1745835140871,6.6062,151.33,151.25,46.52]
[1745835141873,6.6056,151.34,151.25,46.52]
[1745835142172,29.55924368,151.35,151.25,46.52]
[1745835142567,6.606,151.33,151.25,46.52]
[1745835142765,29.55924368,151.35,151.25,46.52]
[1745835143274,6.6056,151.34,151.25,46.52]
[1745835143573,29.55924368,151.35,151.25,46.52]
[1745835144474,6.6057,151.34,151.25,46.52]
[1745835144774,29.55924368,151.35,151.25,46.52]
[1745835144973,6.6066,151.32,151.25,46.52]
[1745835145176,29.55924368,151.35,151.19,521.67031816]
[1745835145375,29.55924368,151.35,151.22,29.55924368]
[1745835146577,6.6062,151.33,151.22,29.55924368]
[1745835146779,29.55924368,151.35,151.22,29.55924368]
[1745835147180,11.4588,151.37,151.25,29.55924368]
[1745835147478,11.4588,151.37,151.22,29.55924368]
[1745835147479,29.55924368,151.35,151.22,29.55924368]
[1745835147678,6.607,151.31,151.22,29.55924368]
[1745835148069,43.94,151.32,151.22,29.55924368]
[1745835148278,6.6073,151.3,151.22,29.55924368]
[1745835148578,43.94,151.32,151.22,29.55924368]
[1745835148881,6.6068,151.31,151.22,29.55924368]
[1745835149076,43.94,151.32,151.19,548.79924368]
[1745835149280,8.0283,151.3,151.19,548.79924368]
[1745835149476,8.0283,151.3,151.22,29.55924368]
[1745835149980,14.6355,151.3,151.22,29.55924368]
[1745835150577,8.0283,151.3,151.22,29.55924368]
[1745835150779,43.94,151.32,151.22,29.55924368]
[1745835151279,6.6073,151.3,151.22,29.55924368]
[1745835151479,6.6073,151.3,151.2,29.55924368]
[1745835153085,43.94,151.32,151.2,29.55924368]
[1745835153086,6.6077,151.29,151.2,29.55924368]
[1745835153279,43.94,151.32,151.2,29.55924368]
[1745835153779,6.607,151.31,151.2,29.55924368]
[1745835154580,43.94,151.32,151.27,29.55924368]
[1745835155385,43.94,151.32,151.24,29.55924368]
[1745835155580,62.11100496,151.32,151.22,18.17100496]
[1745835155783,6.6083,151.28,151.19,537.41100496]
[1745835156382,6.6086,151.27,151.19,537.41100496]
[1745835156681,18.17100496,151.29,151.16,19.18540496]
[1745835156887,10.6228,151.26,151.16,19.18540496]
[1745835157087,4.0135,151.26,151.16,19.18540496]
[1745835157285,46.6935,151.26,151.16,19.18540496]
[1745835157482,6.6101,151.24,151.16,19.18540496]
[1745835157681,46.6935,151.26,151.16,18.17100496]
[1745835157986,64.86450496,151.26,151.16,18.17100496]
[1745835158485,3.8867,151.25,151.14,42.68]
[1745835159293,3.9507,151.24,151.14,42.68]
[1745835159788,6.6109,151.22,151.14,42.68]
[1745835160087,3.9507,151.24,151.16,29.564044]
[1745835160589,3.8867,151.25,151.19,29.564044]
[1745835161588,3.8867,151.25,151.15,42.68]
[1745835161589,3.8867,151.25,151.16,29.564044]
[1745835162091,3.8867,151.25,151.19,29.564044]
[1745835163687,3.97,151.32,151.22,29.564044]
[1745835163892,49.1719,151.31,151.22,29.564044]
[1745835164588,49.1719,151.31,151.19,29.564044]
[1745835165191,6.6085,151.28,151.19,29.564044]
[1745835166692,49.1719,151.31,151.22,29.564044]
[1745835167196,6.6073,151.3,151.22,29.564044]
[1745835167494,49.1719,151.31,151.22,29.564044]
[1745835167992,49.1719,151.31,151.19,29.564044]
[1745835168495,6.6078,151.29,151.19,29.564044]
[1745835168794,49.1719,151.31,151.19,29.564044]
[1745835169494,6.6083,151.28,151.19,29.564044]
[1745835169695,49.1719,151.31,151.19,29.564044]
[1745835169892,49.1719,151.31,151.22,29.564044]
[1745835170693,49.1719,151.31,151.19,29.564044]
[1745835170894,6.6084,151.28,151.19,29.564044]
[1745835171395,6.608,151.29,151.19,29.564044]
[1745835171595,49.1719,151.31,151.19,29.564044]
[1745835171896,6.6081,151.28,151.19,29.564044]
[1745835173597,6.6086,151.27,151.19,29.564044]
[1745835174191,6.6086,151.27,151.12,1.0203]
[1745835174192,39.94,151.26,151.12,30.584344]
[1745835174390,29.564044,151.24,151.1,39.94]
[1745835174590,29.564044,151.21,151.1,39.94]
[1745835174895,6.6126,151.18,151.1,39.94]
[1745835177902,39.94,151.24,151.15,29.564044]
[1745835178398,46.5501,151.24,151.15,29.564044]
[1745835178592,39.94,151.24,151.15,29.564044]
[1745835178795,6.6118,151.2,151.13,1.0296]
[1745835178996,29.564044,151.2,151.09,29.564044]
[1745835179195,29.564044,151.2,151.07,30.71531354]
[1745835179196,39.94,151.19,151.07,30.71531354]
[1745835179398,6.6126,151.18,151.07,30.71531354]
[1745835179600,39.94,151.19,151.08,18.20342306]
[1745835179796,47.7694,151.19,151.08,18.20342306]
[1745835180597,47.7694,151.19,151.11,18.20342306]
[1745835180799,43.7056,151.19,151.11,18.20342306]
[1745835183105,39.94,151.19,151.11,18.20342306]
[1745835183706,43.7247,151.23,151.14,18.20342306]
[1745835183906,50.3352,151.23,151.14,18.20342306]
[1745835184107,43.7247,151.23,151.14,18.20342306]
[1745835184405,6.6109,151.22,151.14,18.20342306]
[1745835185309,476.02,151.33,151.2,18.20342306]
[1745835185606,4.1538,151.32,151.2,18.20342306]
[1745835185907,18.20342306,151.31,151.2,18.20342306]
[1745835186103,18.20342306,151.28,151.17,18.20342306]
[1745835186406,6.6097,151.25,151.17,18.20342306]
[1745835186909,6.6092,151.26,151.17,18.20342306]
[1745835187105,42.6611,151.27,151.17,18.20342306]
[1745835187606,6.6095,151.25,151.17,18.20342306]
[1745835188309,10.4472,151.26,151.17,18.20342306]
[1745835188705,3.838,151.26,151.17,18.20342306]
[1745835188908,6.6097,151.25,151.17,18.20342306]
[1745835189207,3.838,151.26,151.17,18.20342306]
[1745835189605,6.6094,151.25,151.17,18.20342306]
[1745835189905,3.838,151.26,151.17,18.20342306]
[1745835190504,6.6096,151.25,151.17,18.20342306]
[1745835190906,3.838,151.26,151.15,476.02]
[1745835191112,6.6107,151.22,151.14,56.90342306]
[1745835193213,45.3107,151.22,151.14,56.90342306]
[1745835193516,38.7,151.22,151.14,56.90342306]
[1745835194011,4.0906,151.24,151.14,56.90342306]
[1745835194411,42.538,151.26,151.14,56.90342306]
[1745835194615,42.538,151.26,151.17,18.20342306]
[1745835194907,37.48,151.3,151.2,18.20342306]
[1745835195112,3.885,151.31,151.23,18.20342306]
[1745835195315,476.02,151.33,151.23,18.20342306]
[1745835195616,6.6064,151.32,151.23,18.20342306]
[1745835195815,476.02,151.33,151.23,18.20342306]
[1745835196012,6.6066,151.32,151.23,18.20342306]
[1745835196814,476.02,151.33,151.23,18.20342306]
[1745835197312,482.626,151.33,151.23,18.20342306]
[1745835197513,37.48,151.34,151.26,18.20342306]
[1745835198514,494.16342306,151.4,151.26,18.20342306]
[1745835198716,513.44,151.4,151.29,18.20342306]
[1745835198913,513.44,151.4,151.29,55.68342306]
[1745835199117,520.043,151.4,151.29,55.68342306]
[1745835199923,531.64342306,151.4,151.29,55.68342306]
[1745835200123,18.20342306,151.37,151.29,37.48]
[1745835200421,6.6049,151.36,151.26,18.20342306]
[1745835201724,6.6051,151.35,151.26,18.20342306]
[1745835202222,6.6055,151.34,151.26,18.20342306]
[1745835202923,4.0663,151.34,151.26,18.20342306]
[1745835203425,7.9912,151.34,151.24,37.46]
[1745835204426,7.9912,151.34,151.23,29.52104202]
[1745835204720,29.52104202,151.32,151.22,37.46]
[1745835205024,18.712,151.34,151.22,37.46]
[1745835205524,18.712,151.34,151.23,29.52104202]
[1745835205726,12.1063,151.34,151.23,29.52104202]
[1745835206026,37.46,151.35,151.26,29.52104202]
[1745835206921,66.98104202,151.35,151.23,29.52104202]
[1745835207121,73.58644202,151.35,151.23,29.52104202]
[1745835207523,66.98104202,151.35,151.23,29.52104202]
[1745835209934,6.6056,151.34,151.23,29.52104202]
[1745835211036,73.58624202,151.35,151.23,29.52104202]